Cogmind - Beta 17 @@@ ROGUE MODE // 2026.06.27 @ 19:51:35 Player: OBLIQUE Result: Destroyed by S-43 Plague with Heavy Machine Gun Performance ------------- Evolutions (7) 3500 Regions Visited (20) 4000 Robots Destroyed (73) 365 Value Destroyed (6310) 6310 Prototype IDs (44) 880 Alien Tech Used (2) 400 Bonus (5086) 5086 TOTAL SCORE: 20541 Bonus ------- High Alert Combat Kills 50 Follower Combat Kills 1636 Entered Garrisons 800 Used RIF Installer 2000 Aligned with FarCom 300 Met Zhirov 300 Cogmind --------- Core Integrity 0/1300 Matter 193/300 Energy 100/100 System Corruption 17% Temperature Cool (0) Movement Core (100) Ox1 Location -3/Armory Parts ------- > --- POWER (1) -------- (None) > --- PROPULSION (4) --- (None) > --- UTILITY (14) ----- Advanced Signal Interpreter Precision Energy Filter Relay Coupler [NC] (11) Relay Coupler [Sentry] (2) > --- WEAPON (2) ------- (None) > --- INVENTORY (5) ---- Light Antimatter Reactor Improved Antigrav System Advanced Remote Datajack Peak State ------------ > --- POWER ------------ Particle Reactor > --- PROPULSION ------- Antigrav Array Antigrav Array > --- UTILITY ---------- Lightpack 2.0 Improved Sensor Array Improved Signal Interpreter 0b10 Alert Chip System Shield Relay Coupler [Grunt] Relay Coupler [Sentry] Advanced Recalibrator > --- WEAPON ----------- Hardcell Cannon Remote Datajack > --- INVENTORY -------- Light Antimatter Reactor Micro Antimatter Reactor Improved Hover Unit Improved Hover Unit Trap Scanner Reactive Plating Improved Remote Shield Authchip [R/Combat] Authchip [R/Combat] Authchip [R/Combat] Relay Coupler [NC] Relay Coupler [NC] Relay Coupler [NC] Relay Coupler [NC] Relay Coupler [Swarmer] Relay Coupler [Grunt] Relay Coupler [Grunt] Relay Coupler [Grunt] Relay Coupler [Duelist] Relay Coupler [Duelist] Relay Coupler [Duelist] Relay Coupler [Sentry] Relay Coupler [Sentry] Relay Coupler [Specialist] Relay Coupler [Hunter] Relay Coupler [Hunter] Gatling Laser Gatling Laser Hypervelocity Railgun Hardcell Cannon Improved Datajack Improved Datajack Remote Datajack Remote Datajack Remote Datajack Remote Datajack Heavy Flail Proton Bomb Trap [Rating: 125] Favorites ----------- Power Light Antimatter Reactor Engine Reinforced Deuterium Engine Power Core Light Nuclear Core Reactor Light Antimatter Reactor Propulsion Antigrav Array Leg Myomer Leg Wheel Compact Wheel Hover Unit Antigrav Array Flight Unit Improved Diametric Drive Utility System Shield Device Triangulator Storage Lightpack 2.0 Processor 0b10 Alert Chip Hackware System Shield Protection Reactive Plating Weapon Remote Datajack Energy Gun Lightning Gun Energy Cannon Guided Plasma Cannon Ballistic Gun High-powered Shotgun Ballistic Cannon Hardcell Cannon Launcher Grenade Launcher Special Weapon Remote Datajack Impact Weapon Heavy Flail Special Melee Weapon Improved Datajack Build | -11 -10 -10 -10 -9 -8 -7 -7 -7 -7 -6 -6 -5 -5 -5 -5 -4 -4 -4 -3 -3 ------- Run | Yrd Mat Min Exi Min Mat Fac Gar Fac Gar Fac Gar Fac Upp Upp Zhi Pro Fac Gar Res Arm Slots Evolved 14 | . . . . . 4 2 . . . 2 . 2 . . . . 2 . 2 . Power . | . . . . . . . . . . . . . . . . . . . . . Propulsion 2 | . . . . . . . . . . 1 . 1 . . . . . . . . Utility 12 | . . . . . 4 2 . . . 1 . 1 . . . . 2 . 2 . Weapon . | . . . . . . . . . . . . . . . . . . . . . Parts Attached 139 | 6 2 1 1 . 11 12 5 8 9 7 16 7 . 6 4 . 1 26 13 4 Power 14 | 1 . . . . 3 2 . . 1 . 2 . . 1 . . . 3 . 1 Engine 6 | 1 . . . . 2 2 . . 1 . . . . . . . . . . . Core 1 | . . . . . 1 . . . . . . . . . . . . . . . Reactor 7 | . . . . . . . . . . . 2 . . 1 . . . 3 . 1 Propulsion 25 | 2 . . . . . 1 . 4 1 1 4 2 . . . . . 4 4 2 Treads . | . . . . . . . . . . . . . . . . . . . . . Leg 6 | . . . . . . . . . . . . . . . . . . 3 1 2 Wheel 3 | 2 . . . . . 1 . . . . . . . . . . . . . . Hover 15 | . . . . . . . . 4 1 1 4 2 . . . . . 1 2 . Flight 1 | . . . . . . . . . . . . . . . . . . . 1 . Utility 71 | 1 1 . . . 4 6 3 3 3 4 9 5 . 5 4 . 1 15 6 1 Device 20 | . . . . . 2 2 1 . 1 2 2 2 . 2 1 . . 1 3 1 Storage 4 | 1 . . . . 1 . . . . . . . . . 1 . . 1 . . Processor 4 | . 1 . . . 1 . . . . 1 . . . . . . . . 1 . Hackware 34 | . . . . . . 1 . 3 2 1 7 3 . 3 1 . 1 10 2 . Protection 9 | . . . . . . 3 2 . . . . . . . 1 . . 3 . . Artifact . | . . . . . . . . . . . . . . . . . . . . . Weapon 29 | 2 1 1 1 . 4 3 2 1 4 2 1 . . . . . . 4 3 . Energy Gun 9 | 2 . . . . 1 1 1 . 2 1 . . . . . . . 1 . . Energy Cannon 7 | . . . 1 . 3 2 . . . . . . . . . . . 1 . . Ballistic Gun 2 | . . . . . . . . . . . . . . . . . . 2 . . Ballistic Cannon 2 | . . . . . . . . . 1 . 1 . . . . . . . . . Launcher 3 | . 1 1 . . . . . . . . . . . . . . . . 1 . Special Weapon 4 | . . . . . . . . 1 1 . . . . . . . . . 2 . Impact Weapon 1 | . . . . . . . . . . 1 . . . . . . . . . . Slashing Weapon . | . . . . . . . . . . . . . . . . . . . . . Piercing Weapon . | . . . . . . . . . . . . . . . . . . . . . Special Melee Weapon 1 | . . . . . . . 1 . . . . . . . . . . . . . Unidentified Prototypes 11 | . . . . . 3 . . 1 . . . . . . 4 . . 1 1 1 Parts Lost 69 | . 1 . . . . 5 . 1 8 1 4 . . 12 . 1 . 17 1 18 Power 3 | . . . . . . . . . 1 . . . . . . . . 1 . 1 Propulsion 15 | . . . . . . 2 . 1 2 . 3 . . 1 . . . 2 . 4 Utility 36 | . . . . . . 2 . . 2 1 1 . . 8 . 1 . 10 . 11 Weapon 15 | . 1 . . . . 1 . . 3 . . . . 3 . . . 4 1 2 Highest Loss Streak 18 | . 1 . . . . 2 . 1 8 1 2 . . 12 . 1 . 3 1 18 To Critical Strikes . | . . . . . . . . . . . . . . . . . . . . . Average Backups 21 | 1 5 8 7 6 9 30 36 39 35 35 37 37 38 5 5 5 5 4 4 4 Power 1 | . 1 1 1 1 . 4 3 1 1 2 3 1 1 . . . . . . . Propulsion 2 | . 2 2 2 1 1 4 7 4 4 3 3 2 4 . . . . . 2 2 Utility 10 | . . 1 1 3 2 12 14 21 21 21 22 21 22 4 3 3 2 2 1 . Weapon 3 | . 2 4 2 . 6 8 9 5 4 5 3 4 5 . . . . . 1 . Tool/Special . | . . . . . . . . . . . . . . . . . . . . . Unused Backups 63 | . . 1 3 1 1 7 15 3 . 1 15 2 . 10 1 . . . 2 1 Power 7 | . . . . . . . 1 1 . . 3 1 . . . . . . . 1 Propulsion 8 | . . . . 1 . 2 2 . . . 1 . . 2 . . . . . . Utility 29 | . . . . . . 3 7 1 . . 11 1 . 4 1 . . . 1 . Weapon 15 | . . 1 3 . 1 2 5 . . 1 . . . 1 . . . . 1 . Tool/Special 4 | . . . . . . . . 1 . . . . . 3 . . . . . . Average Slot Usage (%) 83 | . 96 100 100 100 76 82 75 81 76 84 84 74 70 85 88 84 74 78 97 83 Engine 4 | . 14 14 14 14 8 7 7 7 6 6 . . . . . . . . . . Reactor 2 | . . . . . . . . . . . 5 5 5 5 5 5 5 3 4 3 Leg 1 | . . . . . . . . . . . . . . . . . . 2 15 8 Wheel 5 | . 28 28 28 28 18 14 7 2 . . . . . . . . . . . . Hover 7 | . . . . . . . . 10 13 20 19 10 11 11 11 11 10 8 1 . Device 8 | . . . . . 6 11 7 6 . 4 8 5 5 21 21 13 10 5 18 20 Storage 7 | . 14 14 14 14 8 7 7 7 7 6 6 5 5 . 2 5 5 7 8 3 Processor 9 | . 10 14 14 14 17 14 7 7 7 11 13 11 11 5 5 5 5 5 4 4 Hackware 17 | . . . . . . 6 7 16 25 21 16 20 17 27 28 29 27 29 33 31 Protection 2 | . . . . . . 3 15 5 . . . . . . . . . 3 . . Energy Gun 3 | . 23 26 7 . . . 7 6 7 5 3 . . . . . . . . . Energy Cannon 3 | . . . 6 14 16 14 . . . . . . . . . . . 2 4 2 Ballistic Cannon 1 | . . . . . . . . . . . 2 5 5 5 5 5 5 . . . Launcher 1 | . 4 1 14 14 . . . . . . . . . . . . . . 1 1 Special Weapon 2 | . . . . . . . . 2 3 . 5 5 5 5 5 5 5 . 1 3 Special Melee Weapon 1 | . . . . . . . 6 4 1 6 . . . . . . . 4 . . Peak Build Rating 125 | 6 7 7 18 18 59 74 76 84 82 90 104 125 120 120 96 96 95 103 110 119 Average Rating 78 | 4 6 7 12 17 55 70 72 80 76 86 93 121 120 88 91 92 91 86 102 108 On Entrance 67 | . 6 7 7 18 18 59 67 75 82 76 85 104 120 120 90 96 91 95 91 107 Avg Prop Armor Cover (%) 4 | . . . . . . . . 5 . . . . . . . . . 5 2 . Naked Turns . | . . . . . . . . . . . . . . . . . . . . . Heaviest Build 49 | 13 15 15 23 23 32 46 46 46 27 21 39 38 37 26 29 27 26 34 49 45 Greatest Support 120 | 26 26 26 26 26 26 32 16 18 18 26 33 52 52 52 52 52 52 70 90 120 Greatest Overweight (x) 7 | . . . . . 1 2 2 2 2 . 2 . . . . . . 1 1 7 Average Overweight (x) . | . . . . . . . 2 1 1 . . . . . . . . . . . Largest Inventory Capacity 40 | 8 8 8 8 8 40 40 40 40 40 40 40 40 40 40 5 5 5 5 5 5 Average Capacity 24 | 7 8 8 8 8 39 40 40 40 40 40 40 40 40 5 5 5 5 5 5 5 Most Carried 40 | 4 8 8 8 8 15 40 40 40 39 39 40 40 40 40 5 5 5 5 5 5 Average Carried 21 | 1 5 7 7 7 9 30 36 39 35 35 38 38 40 5 4 5 4 4 4 4 Final Capacity 40 | 8 8 8 8 8 40 40 40 40 40 40 40 40 40 5 5 5 5 5 5 5 Final Carried 40 | 4 8 8 8 8 15 36 39 39 34 39 40 40 40 5 5 5 5 5 5 3 Class Distribution -------------------- 38% | Bothacker-Mutant 19% | Hauler-Mutant 14% | Bothacker-Scout 12% | Mutant 10% | Bothacker-Skirmisher Dominant Class ---------------- Mutant | -10/Materials Mutant | -10/Mines Mutant | -10/Exiles Mutant | -9/Mines Hauler-Mutant | -8/Materials Hauler-Mutant | -7/Factory Hauler-Mutant | -7/Garrison Bothacker-Mutant | -7/Factory Bothacker-Mutant | -7/Garrison Bothacker-Scout | -6/Factory Bothacker-Skirmisher | -6/Garrison Bothacker-Scout | -5/Factory Bothacker-Scout | -5/Upper Caves Bothacker-Scout | -5/Upper Caves Bothacker-Mutant | -5/Zhirov Bothacker-Mutant | -4/Proximity Caves Bothacker-Mutant | -4/Factory Bothacker-Mutant | -4/Garrison Scavenger-Mutant | -3/Research Bothacker-Mutant | -3/Armory Resources | -11 -10 -10 -10 -9 -8 -7 -7 -7 -7 -6 -6 -5 -5 -5 -5 -4 -4 -4 -3 -3 ----------- Run | Yrd Mat Min Exi Min Mat Fac Gar Fac Gar Fac Gar Fac Upp Upp Zhi Pro Fac Gar Res Arm Matter Collected 3032 | 225 29 106 . 165 130 100 . 268 225 82 418 6 59 85 . 311 . 535 116 172 Remotely . | . . . . . . . . . . . . . . . . . . . . . Salvage Created 2689 | . 92 48 . 90 128 1291 . . 170 . 171 1 . 19 . . . 290 192 197 Parts 135 | . 3 3 . 7 6 59 . . 8 . 6 . . 5 . . . 16 12 10 Haulers Intercepted 1 | . . . . . . 1 . . . . . . . . . . . . . . Recyclers Shooed 1 | . . . . . . . . . . . . . . . . . . . 1 . Parts Field Recycled . | . . . . . . . . . . . . . . . . . . . . . Retrieved Matter . | . . . . . . . . . . . . . . . . . . . . . Parts Self-Destructed 16 | . . . . . . . . . . . . . 9 . . 7 . . . . Prevented . | . . . . . . . . . . . . . . . . . . . . . Parts Restored . | . . . . . . . . . . . . . . . . . . . . . Kills | -11 -10 -10 -10 -9 -8 -7 -7 -7 -7 -6 -6 -5 -5 -5 -5 -4 -4 -4 -3 -3 ------- Run | Yrd Mat Min Exi Min Mat Fac Gar Fac Gar Fac Gar Fac Upp Upp Zhi Pro Fac Gar Res Arm Combat Hostiles Destroyed 60 | . 2 3 . 4 2 23 . . 5 . 4 . . 1 . . . 8 4 4 Melee 1 | . . . . . . . . . . . . . . . . . . 1 . . Guns 14 | . 1 3 . . . . . . 5 . 3 . . . . . . 2 . . Cannons 36 | . . . . 4 2 22 . . . . 1 . . 1 . . . 5 1 . AOE 9 | . 1 . . . . 1 . . . . . . . . . . . . 3 4 Classes Destroyed 14 | . 2 1 . . . 7 . . . . . . . 1 . . . 2 . 1 Tunneler 2 | . . . . . . 2 . . . . . . . . . . . . . . Hauler 1 | . . . . . . 1 . . . . . . . . . . . . . . Recycler 1 | . . . . . . 1 . . . . . . . . . . . . . . Watcher 7 | . 1 . . . 1 4 . . . . . 1 . . . . . . . . Swarmer 23 | . . 3 . 3 . 9 . . 1 . 1 . . . . . . 3 . 3 Cutter 2 | . . . . . . . . . . . . . . . . . . 2 . . Saboteur 1 | . . . . . . . . . . . . . . . . . . 1 . . Grunt 19 | . 2 . . 1 2 7 . . 1 . 3 . . . . . . 3 . . Brawler 2 | . . . . . . 1 . . 1 . . . . . . . . . . . Duelist 1 | . . . . . . 1 . . . . . . . . . . . . . . Sentry 3 | . . . . . . 3 . . . . . . . . . . . . . . Hunter 2 | . . . . . . . . . . . . . . . . . . . . 2 Programmer 8 | . . . . . . 2 . . 2 . . . . . . . . . 4 . Master Thief 1 | . . . . . . . . . . . . . . 1 . . . . . . Best Kill Streak 5 | . 2 3 . 3 3 5 . . 4 . 2 1 . 1 . . . 2 2 3 Combat Bots Only 4 | . 2 3 . 3 2 4 . . 4 . 2 . . 1 . . . 2 2 3 Max Kills in Single Turn 3 | . 1 2 . 1 1 2 . . 2 . 1 1 . 1 . . . 1 1 3 Gunslinging 1 | . . 1 . . . . . . . . . . . . . . . . . . Exploded 3 | . 1 . . . . 1 . . . . . . . . . . . . 1 3 Melee 1 | . . . . . . . . . . . . . . . . . . 1 . . Uniques/NPCs Destroyed . | . . . . . . . . . . . . . . . . . . . . . Combat | -11 -10 -10 -10 -9 -8 -7 -7 -7 -7 -6 -6 -5 -5 -5 -5 -4 -4 -4 -3 -3 -------- Run | Yrd Mat Min Exi Min Mat Fac Gar Fac Gar Fac Gar Fac Upp Upp Zhi Pro Fac Gar Res Arm Hostile Shots Fired 823 | . 7 14 . 9 2 112 . 14 95 4 65 8 . 4 . 13 . 189 23 264 Missed 318 | . 2 3 . 3 . 41 . 6 28 . 31 3 . . . 7 . 76 8 110 Hits 505 | . 5 11 . 6 2 71 . 8 67 4 34 5 . 4 . 6 . 113 15 154 Melee 25 | . . . . . . 1 . . 2 . . . . 4 . 1 . 7 . 10 Projectile 480 | . 5 11 . 6 2 70 . 8 65 4 34 5 . . . 5 . 106 15 144 AOE 2 | . . . . . . . . . 1 . . . . . . . . 1 . . Critical Strikes 24 | . . . . . . 3 . . 4 . . . . . . 1 . 7 . 9 Part Disruptions 3 | . . . . . . . . . . . . . . . . . . . . 3 Damage Taken 8979 | . 118 89 . 71 33 873 104 111 1155 60 664 157 . 6 . 148 . 2076 267 3047 Core 2594 | . 17 16 . . . 161 56 14 327 14 152 17 . . . 41 . 479 75 1225 Absorbed by Shields 592 | . . . . . . . . . . . 18 . . . . . . . 96 478 Redirected to Shielding 29 | . . . . . . . . . . . . . . . . . . 29 . . Ignored by Resistances 63 | . . . . . . 48 . 15 . . . . . . . . . . . . Core Remaining (%) 76 | 100 . . . 86 100 . . . 20 . 80 . . . . 94 . 53 . . Volleys Fired 365 | . 8 7 . 8 10 60 24 5 34 . 54 30 . 6 . 4 . 76 19 20 Largest 2 | . 2 2 . 1 1 2 1 1 2 . 1 1 . 1 . 1 . 1 2 1 Hottest 160 | . 90 90 . 120 120 132 55 5 160 . 55 55 . 55 . 55 . 105 154 105 Shots Fired 388 | . 13 14 . 8 10 63 24 5 39 . 55 30 . 6 . 4 . 76 21 20 Gun 114 | . 11 14 . . . 1 24 . 16 . 17 . . . . . . 31 . . Cannon 179 | . . . . 8 10 62 . . 8 . 12 10 . 6 . 4 . 34 14 11 Launcher 8 | . 2 . . . . . . . . . . . . . . . . . 3 3 Special 87 | . . . . . . . . 5 15 . 26 20 . . . . . 11 4 6 Kinetic 73 | . . . . . . . . . 8 . 12 10 . 6 . 4 . 33 . . Thermal 162 | . 11 14 . 8 7 52 . . 13 . . . . . . . . 32 14 11 Explosive 8 | . 2 . . . . . . . . . . . . . . . . . 3 3 Electromagnetic 58 | . . . . . 3 11 24 . 3 . 17 . . . . . . . . . Robot Hit Streak 41 | . 5 6 . 4 1 41 . 6 8 . 10 8 . 3 . 1 . 7 4 3 Robot Miss Streak 8 | . 1 2 . . 2 1 . 1 4 . 3 4 . 1 . 2 . 8 3 2 Penetration Max . | . . . . . . . . . . . . . . . . . . . . . Secondary Targets 3 | . . 2 . . . . . . 1 . . . . . . . . . . . Max Gunslinging Chain 1 | . . 1 . . . . . . 1 . . . . . . . . . . . Shots Hit Robots 217 | . 11 8 . 3 1 43 12 6 27 . 28 16 . 4 . 1 . 41 11 5 Core Hits 98 | . 5 3 . . 3 38 . . 9 . 4 1 . 2 . . . 15 11 7 Critical Kills . | . . . . . . . . . . . . . . . . . . . . . Critical Parts Destroyed 1 | . . . . . . . . . . . . . . . . . . 1 . . Critical Strikes 2 | . . 1 . . . . . . . . . . . . . . . 1 . . Burn 1 | . . 1 . . . . . . . . . . . . . . . . . . Destroy 1 | . . . . . . . . . . . . . . . . . . 1 . . Melee Attacks 31 | . . . . . . . 12 2 . 1 1 . . . . . . 15 . . Impact 1 | . . . . . . . . . . 1 . . . . . . . . . . Slashing . | . . . . . . . . . . . . . . . . . . . . . Piercing . | . . . . . . . . . . . . . . . . . . . . . Sneak Attacks 14 | . . . . . . . 12 2 . . . . . . . . . . . . Combat Hostiles . | . . . . . . . . . . . . . . . . . . . . . Follow-up Attacks . | . . . . . . . . . . . . . . . . . . . . . Damage Inflicted 6439 | . 227 91 . 285 318 2479 89 . 438 . 229 111 . 158 . 30 . 711 467 806 Guns 851 | . 109 91 . . . 23 . . 247 . 118 . . . . . . 263 . . Cannons 4205 | . . . . 285 318 2296 . . 191 . 111 111 . 158 . 30 . 448 257 . Explosions 1383 | . 118 . . . . 160 89 . . . . . . . . . . . 210 806 Melee . | . . . . . . . . . . . . . . . . . . . . . Ramming . | . . . . . . . . . . . . . . . . . . . . . Kinetic 960 | . . . . . . . . . 191 . 111 111 . 158 . 30 . 359 . . Thermal 3863 | . 109 91 . 285 287 2275 . . 207 . . . . . . . . 352 257 . Explosive 1223 | . 118 . . . . . 89 . . . . . . . . . . . 210 806 Electromagnetic 393 | . . . . . 31 204 . . 40 . 118 . . . . . . . . . Impact . | . . . . . . . . . . . . . . . . . . . . . Slashing . | . . . . . . . . . . . . . . . . . . . . . Piercing . | . . . . . . . . . . . . . . . . . . . . . Highest Corruption 17 | . . . . . . 1 2 3 13 1 1 . . . . . . . 1 17 Average Corruption 2 | . . . . . . 1 1 2 9 1 1 . . . . . . . 1 2 Corruption Purged . | . . . . . . . . . . . . . . . . . . . . . Corruption Blocked . | . . . . . . . . . . . . . . . . . . . . . Effects 65 | . . . . . . 4 12 14 11 . 14 . . . . . . . 2 8 Message Errors 17 | . . . . . . . 5 7 3 . 1 . . . . . . . 1 . Matter Fused 14 | . . . . . . . 3 5 2 . 3 . . . . . . . . 1 Heat Flow Errors 7 | . . . . . . 1 1 2 1 . 2 . . . . . . . . . Energy Discharges 5 | . . . . . . 1 1 . . . 1 . . . . . . . 1 1 Parts Fused 1 | . . . . . . . . . . . 1 . . . . . . . . . Data Loss (minor) 6 | . . . . . . . 1 . 1 . 2 . . . . . . . . 2 Data Loss (major) 5 | . . . . . . . 1 . 1 . 2 . . . . . . . . 1 Misfires 3 | . . . . . . 1 . . 1 . 1 . . . . . . . . . Alerts 2 | . . . . . . 1 . . . . 1 . . . . . . . . . Misdirections 3 | . . . . . . . . . . . . . . . . . . . . 3 Weapon Failures 2 | . . . . . . . . . 2 . . . . . . . . . . . Overload Shots . | . . . . . . . . . . . . . . . . . . . . . Overflow Damage 180 | . . . . 72 3 38 . . . . 20 5 . . . . . 38 . 4 Projectiles 149 | . . . . 72 3 31 . . . . . 5 . . . . . 38 . . Explosions 31 | . . . . . . 7 . . . . 20 . . . . . . . . 4 Melee . | . . . . . . . . . . . . . . . . . . . . . Knockbacks 6 | . . . . . . . . . 1 . 1 1 . 1 . . . 2 . . Impact . | . . . . . . . . . . . . . . . . . . . . . Kinetic 6 | . . . . . . . . . 1 . 1 1 . 1 . . . 2 . . Secondary . | . . . . . . . . . . . . . . . . . . . . . Self-Inflicted Damage 191 | . . . . . . 46 . . . . 110 . . . . . . . . 35 Shots 4 | . . . . . . 2 . . . . 1 . . . . . . . . 1 Rammed 2 | . . . . . . . . . . . . . . . . . . . . 2 Targets Rammed 2 | . . . . . . . . . . . . . . . . . . . . 2 Kicked . | . . . . . . . . . . . . . . . . . . . . . Crushed . | . . . . . . . . . . . . . . . . . . . . . Highest Temperature 461 | . 171 150 . 249 461 316 136 192 165 . 189 4 . . . . . 336 . 40 Average Temperature 72 | . 73 61 . 139 126 81 79 91 48 . 22 4 . . . . . 48 . 40 Received Heat Transfer 1840 | . 45 . . 36 18 267 . 27 246 . 127 9 . . . 9 . 773 12 271 Effects 4 | . . . . . 3 1 . . . . . . . . . . . . . . Shutdowns 1 | . . . . . 1 . . . . . . . . . . . . . . . Energy Bleed 1 | . . . . . . 1 . . . . . . . . . . . . . . Interference 2 | . . . . . 2 . . . . . . . . . . . . . . . Siege Activations . | . . . . . . . . . . . . . . . . . . . . . Martial Activations . | . . . . . . . . . . . . . . . . . . . . . Shielding Activations . | . . . . . . . . . . . . . . . . . . . . . Robots Disrupted . | . . . . . . . . . . . . . . . . . . . . . Combat Hostiles . | . . . . . . . . . . . . . . . . . . . . . Robots Corrupted . | . . . . . . . . . . . . . . . . . . . . . Combat Hostiles . | . . . . . . . . . . . . . . . . . . . . . Parts Fried . | . . . . . . . . . . . . . . . . . . . . . Impact Corruptions . | . . . . . . . . . . . . . . . . . . . . . Robots Melted . | . . . . . . . . . . . . . . . . . . . . . Combat Hostiles . | . . . . . . . . . . . . . . . . . . . . . Parts Melted 13 | . . . . 1 . 11 . . 1 . . . . . . . . . . . Heat Transferred 7220 | . 297 322 . 640 560 4310 . . 425 . . . . . . . . 444 222 . Parts Sabotaged 5 | . . . . . . . . . . . . . . . . . . 5 . . Parts Stolen 3 | . . . . . . . . . . . . . . 3 . . . . . . Parts Stripped . | . . . . . . . . . . . . . . . . . . . . . Power Chain Reactions 1 | . . . . . . 1 . . . . . . . . . . . . . . Alert | -11 -10 -10 -10 -9 -8 -7 -7 -7 -7 -6 -6 -5 -5 -5 -5 -4 -4 -4 -3 -3 ------- Run | Yrd Mat Min Exi Min Mat Fac Gar Fac Gar Fac Gar Fac Upp Upp Zhi Pro Fac Gar Res Arm Maximum Alert Level 3 | . . . . . . 1 3 2 1 . 2 1 . . . . . 2 1 . Low Security (%) 44 | 100 100 100 . 100 100 98 4 . 13 100 29 75 . . . . 100 11 . 100 Level 1 33 | . . . . . . 1 51 14 86 . 37 24 . . . . . 57 99 . Level 2 19 | . . . . . . . 29 85 . . 32 . . . . . . 30 . . Level 3 1 | . . . . . . . 14 . . . . . . . . . . . . . Level 4 . | . . . . . . . . . . . . . . . . . . . . . Level 5 . | . . . . . . . . . . . . . . . . . . . . . High Security . | . . . . . . . . . . . . . . . . . . . . . Max Security . | . . . . . . . . . . . . . . . . . . . . . Peak Influence 844 | . 62 70 . 71 118 254 844 511 323 114 499 251 . . . . . 597 335 128 Initial 443 | . . 24 . . 21 39 177 443 323 114 . 251 . . . . . . 335 126 Average 232 | . 17 12 . 18 37 51 439 444 231 56 313 147 . . . . . 324 256 63 Influence Increases 4706 | . 99 70 . 156 187 630 667 347 236 47 759 102 24 60 . . . 907 214 201 Destroy 0b10 Robot/C 1693 | . 40 60 . 120 112 368 . 128 160 . 216 . 24 . . . . 330 75 60 Destroy 0b10 Robot/NC 65 | . 5 . . . 8 32 . 12 . . . 8 . . . . . . . . Destroy Leader 234 | . 12 10 . 20 18 82 . 20 16 . 14 2 . . . . . 24 16 . Allied During Kill 287 | . . . . 5 19 6 . 95 24 . 59 . . . . . . 68 8 3 Trap Triggered on 0b10 21 | . . . . . . . . . . . 21 . . . . . . . . . Successful Hack 187 | . 5 . . 11 29 39 12 16 . 27 9 30 . . . . . . 9 . Select Force Hacks 30 | . 30 . . . . . . . . . . . . . . . . . . . Disable Machine 192 | . . . . . . 36 . 60 . 10 50 . . . . . . . 12 24 Anti-Garrison Action 1073 | . . . . . . . 600 . . . 246 . . . . . . 227 . . Destroy Structure 514 | . 7 . . . 1 31 55 16 . . 94 12 . . . . . 126 94 78 Partial Spotted 32 | . . . . . . . . . . 10 . 10 . . . . . 12 . . Lose Combat Pursuer 378 | . . . . . . 36 . . 36 . 50 40 . 60 . . . 120 . 36 Influence Decreases 4704 | . 37 132 . 101 154 464 77 729 479 266 280 498 107 60 . . . 310 570 440 Entered New Map 1479 | . . 38 . . 34 49 77 401 139 105 . 228 31 . . . . . 262 115 Time Decay 1906 | . 27 94 . 101 100 325 . 278 . 141 . 230 76 50 . . . . 278 206 Lost Part 459 | . 10 . . . . 50 . 10 80 . 40 . . . . . . 170 10 89 Lost Ally 860 | . . . . . 20 40 . 40 260 20 240 40 . 10 . . . 140 20 30 Squads Dispatched 18 | . 1 . . . 1 5 . 3 . 1 . 1 . . . . . . 2 4 Investigation 4 | . 1 . . . . . . 2 . . . . . . . . . . . 1 Extermination 8 | . . . . . . 2 . 1 . 1 . 1 . . . . . . 2 1 Reinforcement 5 | . . . . . 1 2 . . . . . . . . . . . . . 2 Assault . | . . . . . . . . . . . . . . . . . . . . . Garrison 1 | . . . . . . 1 . . . . . . . . . . . . . . Intercept . | . . . . . . . . . . . . . . . . . . . . . Searches Triggered . | . . . . . . . . . . . . . . . . . . . . . Construction Impeded . | . . . . . . . . . . . . . . . . . . . . . Haulers Reinforced 1 | . . . . . . 1 . . . . . . . . . . . . . . Active Scanning Responses . | . . . . . . . . . . . . . . . . . . . . . Cargo Convoy Interrupts . | . . . . . . . . . . . . . . . . . . . . . Stealth | -11 -10 -10 -10 -9 -8 -7 -7 -7 -7 -6 -6 -5 -5 -5 -5 -4 -4 -4 -3 -3 --------- Run | Yrd Mat Min Exi Min Mat Fac Gar Fac Gar Fac Gar Fac Upp Upp Zhi Pro Fac Gar Res Arm Distress Signals 6 | . . . . . . . . . . . . 1 . . . . . . . 5 Communications Jammed 22 | . . . . . . . . . . . . 4 . . . . . . . 18 Distress Signals 22 | . . . . . . . . . . . . 4 . . . . . . . 18 Times Spotted 239 | . 4 3 . 5 7 33 . 11 19 1 34 10 . 14 . 8 . 46 10 34 Peak Tracking Total 22 | . 2 3 . 3 3 7 . 2 13 1 7 4 . 4 . 5 . 6 4 22 Tactical Retreats 21 | . . . . . . 2 . . 1 . 2 3 . 2 . 2 . 6 . 3 Traps | -11 -10 -10 -10 -9 -8 -7 -7 -7 -7 -6 -6 -5 -5 -5 -5 -4 -4 -4 -3 -3 ------- Run | Yrd Mat Min Exi Min Mat Fac Gar Fac Gar Fac Gar Fac Upp Upp Zhi Pro Fac Gar Res Arm Traps Triggered 35 | . 1 . . . . 4 3 4 2 . 11 1 . . . . . 9 . . Indirectly . | . . . . . . . . . . . . . . . . . . . . . Trap Hack Attempts 42 | . . . . . . . . 16 15 . . . . . . . . 11 . . Triggered . | . . . . . . . . . . . . . . . . . . . . . Disarmed 1 | . . . . . . . . 1 . . . . . . . . . . . . Reprogrammed 6 | . . . . . . . . 1 3 . . . . . . . . 2 . . Reused 3 | . . . . . . . . . . . 3 . . . . . . . . . Traps Extracted . | . . . . . . . . . . . . . . . . . . . . . Installed 6 | . . . . . . . . . . . 6 . . . . . . . . . Triggered 3 | . . . . . . . . . . . 3 . . . . . . . . . Most Traps Carried 6 | . . . . . . . . . . . 6 1 1 1 . . . . . . Machines | -11 -10 -10 -10 -9 -8 -7 -7 -7 -7 -6 -6 -5 -5 -5 -5 -4 -4 -4 -3 -3 ---------- Run | Yrd Mat Min Exi Min Mat Fac Gar Fac Gar Fac Gar Fac Upp Upp Zhi Pro Fac Gar Res Arm Machines Disabled 37 | . . . . . . 3 7 5 . 1 13 . . . . . . 5 1 2 Max in Single Turn 2 | . . . . . . 2 1 . . 1 2 . . . . . . 2 1 1 Garrison Relay 13 | . . . . . . . 6 . . . 4 . . . . . . 3 . . Phase Generator 3 | . . . . . . . 1 . . . 1 . . . . . . 1 . . Energy Cycler 1 | . . . . . . . . . . . . . . . . . . . . 1 Machines Repaired . | . . . . . . . . . . . . . . . . . . . . . Machines Dismantled . | . . . . . . . . . . . . . . . . . . . . . Machines Sabotaged . | . . . . . . . . . . . . . . . . . . . . . Overloaded Fab Kills . | . . . . . . . . . . . . . . . . . . . . . Hacking | -11 -10 -10 -10 -9 -8 -7 -7 -7 -7 -6 -6 -5 -5 -5 -5 -4 -4 -4 -3 -3 --------- Run | Yrd Mat Min Exi Min Mat Fac Gar Fac Gar Fac Gar Fac Upp Upp Zhi Pro Fac Gar Res Arm Machines Accessed 46 | . 3 . 1 1 2 6 3 6 . 4 2 7 1 . 4 . 1 1 2 2 Terminals 27 | . 2 . . 1 2 1 3 5 . 3 2 4 1 . . . . 1 1 1 Fabricators 4 | . . . . . . 2 . . . . . 1 . . . . . . . 1 Repair Stations 1 | . . . . . . . . . . . . . . . . . . . 1 . Recycling Units 1 | . 1 . . . . . . . . . . . . . . . . . . . Scanalyzers 4 | . . . . . . 2 . . . . . 2 . . . . . . . . Garrison Access 4 | . . . . . . 1 . 1 . 1 . . . . . . 1 . . . Total Hacks 161 | . 11 . 1 4 6 20 11 22 . 33 3 21 1 . 16 . 1 1 6 4 Successful 72 | . 3 . 1 2 3 8 2 11 . 12 2 8 1 . 16 . 1 1 1 . Failed 86 | . 8 . . 1 3 11 9 11 . 20 1 13 . . . . . . 5 4 Catastrophic 25 | . . . . 1 . 2 3 7 . 3 1 6 . . . . . . 1 1 Database Lockouts 3 | . . . . 1 . 1 . . . 1 . . . . . . . . . . Manual 64 | . 11 . 1 3 6 6 . 13 . 14 . 7 . . . . . . 2 1 Terminals 111 | . 10 . . 4 6 4 11 20 . 31 3 15 1 . . . . 1 2 3 Fabricators 10 | . . . . . . 7 . . . . . 2 . . . . . . . 1 Repair Stations 4 | . . . . . . . . . . . . . . . . . . . 4 . Recycling Units 1 | . 1 . . . . . . . . . . . . . . . . . . . Scanalyzers 10 | . . . . . . 6 . . . . . 4 . . . . . . . . Garrison Access 8 | . . . . . . 3 . 2 . 2 . . . . . . 1 . . . Terminal Hacks 50 | . . . 1 2 . 2 2 7 . 10 2 6 1 . 16 . . 1 . . Record 5 | . . . . . . . . . . . . . 1 . 4 . . . . . Part Schematic 4 | . . . . . . . . . . . . . . . 4 . . . . . Robot Analysis 5 | . . . . 1 . . . . . . . . . . 4 . . . . . Prototype ID Bank 5 | . . . . . . . . . . 1 . . . . 4 . . . . . Open Door 2 | . . . . . . . 1 . . . . . . . . . . 1 . . Branch Access Points 3 | . . . . . . . . 1 . 1 . 1 . . . . . . . . Emergency Access Points 4 | . . . . . . 1 1 . . . 1 1 . . . . . . . . Terminal Index 3 | . . . . . . . . 1 . 1 . 1 . . . . . . . . Recycling Unit Index 1 | . . . . . . . . . . 1 . . . . . . . . . . Scanalyzer Index 1 | . . . . . . . . . . 1 . . . . . . . . . . Locate Traps 2 | . . . . . . . . 1 . . . 1 . . . . . . . . Security Status 1 | . . . . . . . . . . 1 . . . . . . . . . . Patrol Status 4 | . . . . . . . . 2 . 1 . 1 . . . . . . . . Recall Extermination 1 | . . . . . . . . 1 . . . . . . . . . . . . Registered Components 1 | . . . . . . . . . . 1 . . . . . . . . . . Zone Layout 6 | . . . . 1 . 1 . 1 . 2 . 1 . . . . . . . . Security Stations 1 | . . . . . . . . . . . 1 . . . . . . . . . Proto ID Catalog 1 | . . . 1 . . . . . . . . . . . . . . . . . Fabricator Hacks 1 | . . . . . . 1 . . . . . . . . . . . . . . Network Status 1 | . . . . . . 1 . . . . . . . . . . . . . . Repair Station Hacks 1 | . . . . . . . . . . . . . . . . . . . 1 . Scan Component 1 | . . . . . . . . . . . . . . . . . . . 1 . Recycling Unit Hacks . | . . . . . . . . . . . . . . . . . . . . . Scanalyzer 1 | . . . . . . 1 . . . . . . . . . . . . . . Retrieve Study 1 | . . . . . . 1 . . . . . . . . . . . . . . Garrison Access Hacks 5 | . . . . . . 1 . 2 . 1 . . . . . . 1 . . . Unlock Access 4 | . . . . . . 1 . 1 . 1 . . . . . . 1 . . . Coupler Status 1 | . . . . . . . . 1 . . . . . . . . . . . . Unauthorized Hacks 14 | . 3 . . . 3 3 . 2 . 1 . 2 . . . . . . . . Terminals 10 | . 2 . . . 3 . . 2 . 1 . 2 . . . . . . . . Assimilate 1 | . . . . . 1 . . . . . . . . . . . . . . . Botnet 6 | . 1 . . . 1 . . 1 . 1 . 2 . . . . . . . . Operators 3 | . 1 . . . 1 . . 1 . . . . . . . . . . . . Fabricators 3 | . . . . . . 3 . . . . . . . . . . . . . . Liberate 1 | . . . . . . 1 . . . . . . . . . . . . . . Fabnet 2 | . . . . . . 2 . . . . . . . . . . . . . . Repair Stations . | . . . . . . . . . . . . . . . . . . . . . Recycling Units 1 | . 1 . . . . . . . . . . . . . . . . . . . Tunnel 1 | . 1 . . . . . . . . . . . . . . . . . . . Scanalyzers . | . . . . . . . . . . . . . . . . . . . . . Garrison Access . | . . . . . . . . . . . . . . . . . . . . . Data Cores Recovered 1 | . . . . . . . . 1 . . . . . . . . . . . . Used 1 | . . . . . . . . 1 . . . . . . . . . . . . Hacking Detections 35 | . 2 . . 1 2 6 3 5 . 4 1 7 . . . . . . 2 2 Full Trace Events 3 | . . . . . . . . 2 . . . . . . . . . . . 1 Feedback Events . | . . . . . . . . . . . . . . . . . . . . . Feedback Blocked . | . . . . . . . . . . . . . . . . . . . . . Robot Schematics Acquired . | . . . . . . . . . . . . . . . . . . . . . Robots Built . | . . . . . . . . . . . . . . . . . . . . . Authchips . | . . . . . . . . . . . . . . . . . . . . . Time . | . . . . . . . . . . . . . . . . . . . . . Total Robot Build Rating . | . . . . . . . . . . . . . . . . . . . . . Part Schematics Acquired 4 | . . . . . . . . . . . . . . . 4 . . . . . Parts Built . | . . . . . . . . . . . . . . . . . . . . . Authchips . | . . . . . . . . . . . . . . . . . . . . . Time . | . . . . . . . . . . . . . . . . . . . . . Total Part Build Rating . | . . . . . . . . . . . . . . . . . . . . . Part Studies Acquired 1 | . . . . . . 1 . . . . . . . . . . . . . . Parts Repaired . | . . . . . . . . . . . . . . . . . . . . . Time . | . . . . . . . . . . . . . . . . . . . . . Parts Recycled . | . . . . . . . . . . . . . . . . . . . . . Recycled Matter . | . . . . . . . . . . . . . . . . . . . . . Retrieved Matter . | . . . . . . . . . . . . . . . . . . . . . Retrieved Components . | . . . . . . . . . . . . . . . . . . . . . Parts Scanalyzed . | . . . . . . . . . . . . . . . . . . . . . Part Schematics Acquired . | . . . . . . . . . . . . . . . . . . . . . Parts Damaged . | . . . . . . . . . . . . . . . . . . . . . Bothacking | -11 -10 -10 -10 -9 -8 -7 -7 -7 -7 -6 -6 -5 -5 -5 -5 -4 -4 -4 -3 -3 ------------ Run | Yrd Mat Min Exi Min Mat Fac Gar Fac Gar Fac Gar Fac Upp Upp Zhi Pro Fac Gar Res Arm Used RIF Installer 4 | . . . . . . . 1 . 1 . 1 . . . . . . 1 . . Threat Obfuscator 1 | . . . . . . . . . 1 . . . . . . . . . . . Signal Jammer 1 | . . . . . . . . . . . 1 . . . . . . . . . Patrol Navigation 1 | . . . . . . . . . . . . . . . . . . 1 . . Robots Hacked 58 | . . . . . . . . 5 8 . 18 8 1 . . . . 13 2 3 Non-combat 8 | . . . . . . . . 2 . . . 5 . . . . . . . 1 Combat 50 | . . . . . . . . 3 8 . 18 3 1 . . . . 13 2 2 Robot Hacks Applied 65 | . . . . . . . . 5 9 . 18 13 . . . . . 13 4 3 parse_system 2 | . . . . . . . . . . . . 2 . . . . . . . . find_chute 1 | . . . . . . . . . . . . 1 . . . . . . . . find_fabricator 1 | . . . . . . . . . . . . 1 . . . . . . . . drop_inventory 1 | . . . . . . . . . . . . 1 . . . . . . . . locate_stockpiles 1 | . . . . . . . . . . . . 1 . . . . . . . . find_recycling 2 | . . . . . . . . 2 . . . . . . . . . . . . map_route 1 | . . . . . . . . . . . . 1 . . . . . . . . scatter_targeting 3 | . . . . . . . . 1 1 . . . . . . . . 1 . . overload_power 3 | . . . . . . . . . . . 1 . . . . . . 2 . . amplify_resonance 2 | . . . . . . . . . 1 . 1 . . . . . . . . . wipe_record 2 | . . . . . . . . . . . . 1 . . . . . 1 . . disable_weapons 1 | . . . . . . . . . . . . . . . . . . . 1 . go_dormant 1 | . . . . . . . . . . . . . . . . . . . . 1 overwrite_iff 18 | . . . . . . . . . 5 . 7 . . . . . . 4 1 1 streamctrl_high 5 | . . . . . . . . . . . 2 1 . . . . . 2 . . formatsys_low 1 | . . . . . . . . . . . . 1 . . . . . . . . formatsys_high 20 | . . . . . . . . 2 2 . 7 3 . . . . . 3 2 1 Relay Couplers Released 59 | . . . . . . . 26 . . . 18 . . . . . . 15 . . Machine Destruction 55 | . . . . . . . 26 . . . 18 . . . . . . 11 . . Programmers 4 | . . . . . . . . . . . . . . . . . . 4 . . Attached 29 | . . . . . . . . 2 2 . 7 3 . 3 . . 1 10 1 . Fabnet Peak Effective % 6 | . . . . . . . . . . 6 6 2 2 2 2 . . . . . Autooverrided 2 | . . . . . . . . . . . 1 . 1 . . . . . . . Robots Rewired 10 | . . . . . . . 5 . . . 3 . . . . . . 2 . . Allies Hacked 3 | . . . . . . . . . . . . . . . . . . . 2 1 Hacks Repelled . | . . . . . . . . . . . . . . . . . . . . . Allies | -11 -10 -10 -10 -9 -8 -7 -7 -7 -7 -6 -6 -5 -5 -5 -5 -4 -4 -4 -3 -3 -------- Run | Yrd Mat Min Exi Min Mat Fac Gar Fac Gar Fac Gar Fac Upp Upp Zhi Pro Fac Gar Res Arm Total Allies 63 | . . . . 4 . . 9 2 7 . 20 5 1 . . . . 11 2 2 Largest Group 8 | . . . . 3 3 2 8 8 8 1 7 3 2 1 . . . 5 1 2 Highest-Rated Group 277 | . . . . 40 40 24 277 277 229 12 251 62 25 13 . . . 222 64 87 Highest-Rated Ally 116 | . . . . 31 16 16 80 80 55 12 85 49 13 13 . . . 116 64 60 Total Orders 3 | . . . . . . . . . . . 1 . . 1 . . . . . 1 STAY 3 | . . . . . . . . . . . 1 . . 1 . . . . . 1 Ally Attacks 308 | . . . . 10 23 11 . 70 35 2 74 5 6 . . . . 62 3 7 Total Damage 6993 | . . . . 147 212 70 . 1374 541 42 1897 109 75 . . . . 2219 158 149 Kills 58 | . . . . 2 6 . . 11 6 . 14 1 2 . . . . 15 1 . Allies Corrupted 1 | . . . . . . . . . . . . . . . . . . . 1 . Allies Melted . | . . . . . . . . . . . . . . . . . . . . . Intel | -11 -10 -10 -10 -9 -8 -7 -7 -7 -7 -6 -6 -5 -5 -5 -5 -4 -4 -4 -3 -3 ------- Run | Yrd Mat Min Exi Min Mat Fac Gar Fac Gar Fac Gar Fac Upp Upp Zhi Pro Fac Gar Res Arm Active Infowar (turns) 5917 | . . . . . 4 . . . . 285 1373 499 203 325 95 336 20 1725 617 435 Sensors 3779 | . . . . . . . . . . 285 1373 499 203 325 95 336 20 197 22 424 Traps 377 | . . . . . 4 . . . . . . . . 301 72 . . . . . Triangulation 3537 | . . . . . . . . . . . . . . 309 95 336 20 1725 617 435 Cloaking 201 | . . . . . . . . . . . . . . 55 40 106 . . . . Robot Analysis Total 5 | . . . . 1 . . . . . . . . . . 4 . . . . . Derelict Logs Recovered 7 | . . 2 . 1 . . . . . . . . 2 1 . 1 . . . . Drone Launches . | . . . . . . . . . . . . . . . . . . . . . Drone Recoveries . | . . . . . . . . . . . . . . . . . . . . . Exploration | -11 -10 -10 -10 -9 -8 -7 -7 -7 -7 -6 -6 -5 -5 -5 -5 -4 -4 -4 -3 -3 ------------- Run | Yrd Mat Min Exi Min Mat Fac Gar Fac Gar Fac Gar Fac Upp Upp Zhi Pro Fac Gar Res Arm Turns Passed 10761 | 57 139 453 197 452 240 1029 1173 606 303 340 1474 499 203 325 95 336 20 1725 617 478 Spaces Moved 9369 | 50 120 460 212 432 163 791 803 416 146 598 1058 659 354 471 129 408 33 1388 351 327 Core 67 | 1 . . . . . . . . . . . . . . . . . . . 66 Treads . | . . . . . . . . . . . . . . . . . . . . . Legs 841 | . . . . . . . . . . . . . . . . . . 251 336 254 Wheels 3175 | 49 120 460 212 432 163 791 803 145 . . . . . . . . . . . . Hover 5286 | . . . . . . . . 271 146 598 1058 659 354 471 129 408 33 1137 15 7 Flight . | . . . . . . . . . . . . . . . . . . . . . Fastest Speed 48 | 50 90 90 90 90 90 100 130 111 110 48 48 56 56 56 56 56 56 56 120 50 Average Speed 86 | 89 90 90 90 90 98 104 130 124 114 48 95 56 56 56 56 56 56 68 120 123 Slowest Speed 400 | 90 90 90 90 90 105 130 130 176 170 48 176 56 56 56 56 56 56 130 136 400 Overloaded Moves . | . . . . . . . . . . . . . . . . . . . . . Propulsion Burnouts . | . . . . . . . . . . . . . . . . . . . . . Robots Hopped 1 | . . . . . . . . . . . . . . . . . . 1 . . Potential Cave-ins . | . . . . . . . . . . . . . . . . . . . . . Cave-ins Triggered . | . . . . . . . . . . . . . . . . . . . . . Teleports 1 | . . . . . . . . . . . . . . . . . . 1 . . Exploration Rate (%) 44 | 4 34 96 60 86 18 24 95 17 30 11 95 20 62 62 60 57 1 60 8 24 Regions Visited 20 Branch Regions 8 Pre-discovered Areas 6 | . 1 2 . . . . . . . . . . . . 3 . . . . . Known Exits Taken 10 | . . . . . . 1 . 1 . 1 . 1 1 1 1 1 1 . 1 . Unknown Exits Taken 6 | 1 1 1 1 1 1 . . . . . . . . . . . . . . . Scrap Searched 8 | . . 1 . 1 . . . . . . . . 1 2 . 3 . . . . Spaces Dug 19 | . . . . . . . . . . . . 5 . 1 . 1 . 4 . 8 Terrain Destroyed 440 | . 6 . . . . 33 66 . . . 152 6 . 2 . 3 . 86 47 39 Melee . | . . . . . . . . . . . . . . . . . . . . . Projectile 37 | . . . . . . . . . . . . 6 . 2 . 3 . 9 7 10 AOE 403 | . 6 . . . . 33 66 . . . 152 . . . . . . 77 40 29 Terrain Rammed . | . . . . . . . . . . . . . . . . . . . . . Walls Destroyed . | . . . . . . . . . . . . . . . . . . . . . Machines Disabled . | . . . . . . . . . . . . . . . . . . . . . Actions | -11 -10 -10 -10 -9 -8 -7 -7 -7 -7 -6 -6 -5 -5 -5 -5 -4 -4 -4 -3 -3 --------- Run | Yrd Mat Min Exi Min Mat Fac Gar Fac Gar Fac Gar Fac Upp Upp Zhi Pro Fac Gar Res Arm Total 11676 | 59 136 484 220 487 231 925 917 500 243 645 1490 768 358 523 151 511 34 2079 526 389 Wait 1293 | . 1 15 . 46 30 19 20 20 7 32 220 61 5 33 7 100 . 528 124 25 Move 9346 | 49 119 459 211 431 162 790 801 415 145 597 1057 658 353 470 128 407 32 1385 350 327 Hop 1 | . . . . . . . . . . . . . . . . . . 1 . . Pick Up 164 | 4 5 1 2 1 10 32 29 5 3 7 39 7 . 5 2 . 1 5 5 1 Fast Attach 74 | 6 1 . 1 . 6 4 . 2 1 1 3 1 . 5 6 . . 27 7 3 Attach 44 | . 1 . . . 3 5 1 3 7 2 6 3 . 1 1 . 1 5 3 2 Detach 15 | . . . 1 . 6 1 . 1 . . . 1 . . 1 . . 1 3 . Swap 59 | . 1 1 . . 2 8 4 5 5 5 10 4 . 1 . . . 2 8 3 Drop 87 | . . 1 5 1 2 6 21 . . . 23 3 . 2 6 . . 4 7 6 Fire 365 | . 8 7 . 8 10 60 24 5 34 . 54 30 . 6 . 4 . 76 19 20 Melee 31 | . . . . . . . 12 2 . 1 1 . . . . . . 15 . . Ram 2 | . . . . . . . . . . . . . . . . . . . . 2 Kick . | . . . . . . . . . . . . . . . . . . . . . Crush . | . . . . . . . . . . . . . . . . . . . . . Escape Stasis 136 | . . . . . . . . 26 26 . 65 . . . . . . 19 . . Rewire 11 | . . . . . . . 5 . . . 6 . . . . . . . . . Trap 48 | . . . . . . . . 16 15 . 6 . . . . . . 11 . . Miscellaneous . | . . . . . . . . . . . . . . . . . . . . . Route ------- -11/Scrapyard -10/Materials -10/Mines (discovered 3 exits: [*Mat x2] / *Exi) -10/Exiles -9/Mines -8/Materials -7/Factory (discovered 2 exits: *Fac / Gar) -7/Garrison (discovered 3 exits: *Fac x3) -7/Factory (discovered 5 exits: *Fac / Sto / *Low x2 / Gar) -7/Garrison -6/Factory (discovered 3 exits: Low x2 / Gar) -6/Garrison (discovered 3 exits: *Fac x3) -5/Factory (discovered 2 exits: *Upp x2) -5/Upper Caves -5/Upper Caves (discovered 2 exits: *Fac / *Zhi) -5/Zhirov -4/Proximity Caves -4/Factory (discovered 4 exits: Res x3 / Gar) -4/Garrison (discovered 2 exits: *Res x2) -3/Research -3/Armory History --------- Turn | Location | Event 15 | -11/Scrapyard | Discovered new exit (range 15) 58 | -11/Scrapyard | Entered Materials 192 | -10/Materials | Discovered new exit (range 6) 197 | -10/Materials | Entered Mines 237 | -10/Mines | Discovered new exit (range 4) 238 | -10/Mines | Learned location of Zion (-7) 301 | -10/Mines | Build established: Mutant 326 | -10/Mines | YI-UF0 nonchalantly dropped a Grenade Launcher on the ground 544 | -10/Mines | Discovered new exit (range 10) 557 | -10/Mines | Learned location of Storage (-7) 645 | -10/Mines | Deemed a non-threat by the Exiles lab entrance 646 | -10/Mines | Discovered new exit (range 5) 650 | -10/Mines | Entered Exiles 673 | -10/Exiles | Met 8R-AWN 687 | -10/Exiles | Met EX-HEX 714 | -10/Exiles | Met EX-BIN 724 | -10/Exiles | Aligned with FarCom system 725 | -10/Exiles | Given EX-Vault access code 746 | -10/Exiles | Opened EX-Vault 754 | -10/Exiles | Found Gui. Plasma Cannon 758 | -10/Exiles | Found 0b10 Alert Chip 762 | -10/Exiles | Found Lightpack 2.0 783 | -10/Exiles | Warned to stay clear of 0b10 Research branches 808 | -10/Exiles | Met EX-DEC 840 | -10/Exiles | Discovered new exit (range 10) 847 | -10/Exiles | Stole three prototypes: Gui. Plasma Cannon, Lightpack 2.0, 0b10 Alert Chip 847 | -10/Exiles | Entered Mines 848 | -9/Mines | Central database locked down 883 | -9/Mines | Met a Derelict bent on vengeance 909 | -9/Mines | A weapon hastily lodged in a ceiling crevice suddenly fell to the ground 935 | -9/Mines | Learned Materials trap positions 949 | -9/Mines | Received a Mining Laser from a helpful Derelict 1244 | -9/Mines | Discovered new exit (range 12) 1269 | -9/Mines | Assisted by bots powering up and referring to "LRC-V3" 1299 | -9/Mines | Entered Materials 1299 | -8/Materials | Accompanied by 3 allies 1299 | -8/Materials | Evolved 4 slots: Utility x4 1300 | -8/Materials | Loaded intel: 11 trap records 1532 | -8/Materials | Discovered new exit (range 4) 1539 | -8/Materials | Entered Factory 1539 | -7/Factory | Accompanied by 2 allies 1539 | -7/Factory | Evolved 2 slots: Utility x2 1541 | -7/Factory | FarCom data flow suspended 1602 | -7/Factory | Build established: Hauler-Mutant 2245 | -7/Factory | Central database locked down 2528 | -7/Factory | Gui. Plasma Cannon suddenly broke down 2542 | -7/Factory | Garrison activated, responded to threat 2556 | -7/Factory | Discovered new exit (range 10) 2566 | -7/Factory | Identified exit to Garrison 2568 | -7/Factory | Entered Garrison 2568 | -7/Garrison | Discovered recently destroyed garrison 2688 | -7/Garrison | Found embedded Infiltrators 2774 | -7/Garrison | Garrison Relay disabled 2841 | -7/Garrison | Discovered new exit (range 5) 2897 | -7/Garrison | Installed Relay Interface Framework 3072 | -7/Garrison | Garrison Relay disabled 3121 | -7/Garrison | Rescued a captive Derelict 3121 | -7/Garrison | Rescued a captive Derelict 3287 | -7/Garrison | Discovered new exit (range 11) 3337 | -7/Garrison | Garrison Relay disabled 3496 | -7/Garrison | Phase Generator disabled 3497 | -7/Garrison | Garrison Relay disabled 3567 | -7/Garrison | Garrison Relay disabled 3634 | -7/Garrison | Build established: Bothacker-Mutant 3638 | -7/Garrison | Garrison Relay disabled 3701 | -7/Garrison | Discovered new exit (range 15) 3741 | -7/Garrison | Entered Factory 3741 | -7/Factory | Accompanied by 8 allies 4007 | -7/Factory | Identified exit to Storage 4007 | -7/Factory | Identified exit to Lower Caves 4332 | -7/Factory | Discovered new exit (range 15) 4342 | -7/Factory | Identified exit to Garrison 4347 | -7/Factory | Entered Garrison 4347 | -7/Garrison | Accompanied by 8 allies 4399 | -7/Garrison | Triggered checkpoint 4434 | -7/Garrison | Core integrity fell below 50% 4441 | -7/Garrison | System corruption reached 10% 4457 | -7/Garrison | Lost 13 allies 4485 | -7/Garrison | Lost 8 parts (1p2n2u3w) 4485 | -7/Garrison | Triggered checkpoint 4629 | -7/Garrison | Expanded RIF knowledge: Threat Obfuscation 4637 | -7/Garrison | Discovered new exit (range 12) 4650 | -7/Garrison | Entered Factory 4650 | -6/Factory | Accompanied by 1 ally 4650 | -6/Factory | Evolved 2 slots: Propulsion x1, Utility x1 4686 | -6/Factory | Identified exit to Garrison 4860 | -6/Factory | Identified exit to Lower Caves 4860 | -6/Factory | Central database locked down 4990 | -6/Factory | Entered Garrison 5020 | -6/Garrison | Phase Generator disabled 5030 | -6/Garrison | Build established: Bothacker-Scout 5038 | -6/Garrison | Triggered checkpoint 5117 | -6/Garrison | Garrison Relay disabled 5326 | -6/Garrison | Lost 4 allies 5328 | -6/Garrison | Triggered checkpoint 5389 | -6/Garrison | Learned Factory security intel 5393 | -6/Garrison | Discovered new exit (range 10) 5401 | -6/Garrison | Identified exit to Factory 5475 | -6/Garrison | Build established: Bothacker-Skirmisher 5504 | -6/Garrison | Garrison Relay disabled 5727 | -6/Garrison | Discovered exit to Factory (range 10) 5856 | -6/Garrison | Triggered checkpoint 5933 | -6/Garrison | Garrison Relay disabled 6016 | -6/Garrison | Triggered checkpoint 6249 | -6/Garrison | Garrison Relay disabled 6303 | -6/Garrison | Discovered exit to Factory (range 13) 6314 | -6/Garrison | Expanded RIF knowledge: Signal Jamming 6416 | -6/Garrison | Spotted B-75 Beast 6464 | -6/Garrison | Entered Factory 6464 | -5/Factory | Evolved 2 slots: Propulsion x1, Utility x1 6680 | -5/Factory | Build established: Bothacker-Scout 6785 | -5/Factory | Identified exit to Upper Caves 6963 | -5/Factory | Entered Upper Caves 6963 | -5/Upper Caves | Accompanied by 1 ally 7059 | -5/Upper Caves | Encountered a Warlord checkpoint 7103 | -5/Upper Caves | Learned 12 Factory zone layouts 7139 | -5/Upper Caves | Learned 8 Factory zone layouts 7163 | -5/Upper Caves | Discovered new exit (range 4) 7165 | -5/Upper Caves | Identified exit to Upper Caves 7166 | -5/Upper Caves | Entered another Upper Caves area 7166 | -5/Upper Caves | Accompanied by 1 ally 7168 | -5/Upper Caves | Encountered a Master Thief 7168 | -5/Upper Caves | Encountered a Master Thief 7169 | -5/Upper Caves | Lightpack 2.0 stolen by Master Thief 7170 | -5/Upper Caves | Particle Reactor stolen by Master Thief 7200 | -5/Upper Caves | Lost 12 parts (1n8u3w) 7224 | -5/Upper Caves | Discovered new exit (range 2) 7224 | -5/Upper Caves | Identified exit to Factory 7237 | -5/Upper Caves | Encountered a Warlord checkpoint 7277 | -5/Upper Caves | Learned 8 Factory zone layouts 7387 | -5/Upper Caves | Discovered new exit (range 12) 7435 | -5/Upper Caves | Attracted the attention of an 0b10 checkpoint 7490 | -5/Upper Caves | Identified exit to Zhirov 7491 | -5/Upper Caves | Entered Zhirov 7491 | -5/Zhirov | Discovered new exit (range 3) 7494 | -5/Zhirov | Identified exit to Proximity Caves 7503 | -5/Zhirov | Met Zhirov 7513 | -5/Zhirov | Learned location of Command (-1) 7513 | -5/Zhirov | Learned location of Testing (-2) 7513 | -5/Zhirov | Learned location of Quarantine (-3) 7518 | -5/Zhirov | Zhirov requested help retrieving the SGEMP Prototype 7527 | -5/Zhirov | Found Alien Artifact 7527 | -5/Zhirov | Identified Integrated Reactor 7527 | -5/Zhirov | Installed Integrated Reactor, increased core energy generation (+10) 7565 | -5/Zhirov | Found Alien Artifact 7586 | -5/Zhirov | Entered Proximity Caves 7662 | -4/Proximity Caves | Learned 4 Research zone layouts 7669 | -4/Proximity Caves | Attracted the attention of an 0b10 checkpoint 7813 | -4/Proximity Caves | Build established: Bothacker-Mutant 7917 | -4/Proximity Caves | Discovered exit to Factory (range 9) 7922 | -4/Proximity Caves | Entered Factory 7922 | -4/Factory | Evolved 2 slots: Utility x2 7923 | -4/Factory | Identified exit to Research 7937 | -4/Factory | Identified exit to Garrison 7942 | -4/Factory | Entered Garrison 8056 | -4/Garrison | Triggered checkpoint 8093 | -4/Garrison | Garrison Relay disabled 8095 | -4/Garrison | Garrison Relay disabled 8189 | -4/Garrison | Spotted B-86 Titan 8317 | -4/Garrison | Triggered checkpoint 8325 | -4/Garrison | Triggered checkpoint 8385 | -4/Garrison | Lost 3 allies 8454 | -4/Garrison | Hijacked Titan 7a control node with streamctrl_high 8563 | -4/Garrison | Triggered checkpoint 8720 | -4/Garrison | Spotted B-90 Cyclops 8774 | -4/Garrison | Discovered exit to Research (range 15) 8884 | -4/Garrison | Triggered checkpoint 8892 | -4/Garrison | Garrison Relay disabled 8913 | -4/Garrison | Discovered exit to Research (range 10) 8935 | -4/Garrison | Identified Transdimensional Reconstructor 8935 | -4/Garrison | Warped through subspace 8954 | -4/Garrison | Lost 3 parts (1p1n1u) 9328 | -4/Garrison | Lost 3 parts (1n2u) 9521 | -4/Garrison | Expanded RIF knowledge: Patrol Navigation 9563 | -4/Garrison | Phase Generator disabled 9667 | -4/Garrison | Entered Research 9667 | -3/Research | Evolved 2 slots: Utility x2 9994 | -3/Research | Build established: Scavenger-Mutant 10200 | -3/Research | Discovered new exit (range 8) 10245 | -3/Research | Identified exit to Armory 10284 | -3/Research | Entered Armory 10284 | -3/Armory | Accompanied by 1 ally 10361 | -3/Armory | Build established: Bothacker-Mutant 10536 | -3/Armory | Energy Cycler disabled 10713 | -3/Armory | System corruption reached 10% 10740 | -3/Armory | Core integrity fell below 50% 10748 | -3/Armory | Core integrity fell below 20% 10762 | -3/Armory | Destroyed by S-43 Plague with Heavy Machine Gun Last Messages --------------- 10743_ W-44 Eye distress signal jammed. 10746_ Relay Coupler [NC] destroyed. 10748_ Connecting with Terminal... 10748_ ALERT: Suspicious activity at Terminal A010. Dispatching Investigation squad. 10749_ S-43 Plague destroyed. 10751_ W-44 Eye distress signal jammed. 10752_ ALERT: Suspicious intruders detected, dispatching Cutter reinforcements to area. 10752_ W-44 Eye distress signal jammed. 10757_ Acquired Prototype Device. 10757_ Identified Prc. Energy Filter. 10760_ Slammed into S-43 Plague. 10761_ System corrupted: Substantial component data lost. 10761_ Slammed into S-43 Plague. 10761_ Destabilizing: System interference. 10761_ Prc. Energy Filter temporarily disabled. 10761_ Adv. Signal Interpreter temporarily disabled. Map ----- +----------------------------------------------------+ | ??????????# """ #?????????????????????????? | | ??????????# "" #?????????????????????????? | | ??????????# #?????????????????????????? | | ???????# %#?????????????????????????? | | ???????# """ ####/####??????????????????????? | | ???????# """ ## [ #??????????????????????? | | ???????# """ ## "#??????????????????????? | | ???????# ## ! ""#??????????????????????? | | ???????# ## ""#??????????????????????? | | ???????# ## ""#??????????????????????? | | ???????# ## ""#??????????????????????? | | ???????# !! ##! T"#??????????????????????? | | ???????# !! # ! ""#??????????????????????? | | ???????+ ! # ""#??????????????????????? | | ???????# # ""#??????????????????????? | | ???????+ / ""#??????????????????????? | | ???????????### # "#??????????????????????? | | ?????????????# # #??????????????????????? | | ?????????????# ########??????????????????????? | | ????????###### ##########+######????????????? | | ????? ! ???????????? | | ????! ! ???????????? | | ???? """ ???????????? | | ????? """ !!! ???????????? | | ????? = """ !!! ###+############?????????????? | | ????? ??? !!! # s@ #???????????????? | | ???????? # ssss! !! #???????????????? | | ???????? # !! !! #???????????????? | | ??????? # !! !! #???????????????? | | ???????? # #???????????????? | | ????????#####+####################???????????????? | | ?????????????????????????????????????????????????? | | ?????????????????????????????????????????????????? | | ?????????????????????????????????????????????????? | | ?????????????????????????????????????????????????? | | ?????????????????????????????????????????????????? | | ?????????????????????????????????????????????????? | | ?????????????????????????????????????????????????? | | ?????????????????????????????????????????????????? | | ?????????????????????????????????????????????????? | | ?????????????????????????????????????????????????? | | ?????????????????????????????????????????????????? | | ?????????????????????????????????????????????????? | | ?????????????????????????????????????????????????? | | ?????????????????????????????????????????????????? | | ?????????????????????????????????????????????????? | | ?????????????????????????????????????????????????? | | | | | | | +----------------------------------------------------+ Best States ------------- Heat Dissipation 65 Energy Generation 35 Energy Capacity 1040 Matter Stores 300 Matter Capacity 300 Sight Range 16 Robot Scan Range 16 Terrain Scan Density 10 Cloak Strength 3 Armor Coverage 375 Resistance: KI 20 Propulsion Shielding 33 Evasion (%) 63 Targeting Accuracy 5 Energy Filtering 50 Particle Charging 30 Offensive Hacking 14 Defensive Hacking 20 Relay Coupler Types 5 Relay Coupler Value 129 Authchip Count 3 Item Schematics ----------------- Imp. Arc Thrower | -5/Zhirov | Free Exp. Optical Array | -5/Zhirov | Free Exp. Heat Sink | -5/Zhirov | Free Assault Drone Bay | -5/Zhirov | Free Robot Schematics ------------------ None Fabricated ------------ Nothing Repaired ---------- Nothing Studied --------- Wheel | -7/Factory | Hacked Alien Tech Used ----------------- Integrated Reactor Transdimensional Reconstructor Achievements -------------- Explosive Keycard Pwned Challenges ------------ None Game ------ Seed ArcsightSuperquantumWand Manual? 0 Play Time 02:53:20 Cumulative 118.7 hours Start 2026.06.27 @ 02:33:16 End 2026.06.27 @ 19:51:35 Sessions 7 Manual Loads 0 Difficulty Rogue Special Mode None Game No. 72 Rogue 72 Adventurer 0 Explorer 0 Win Type - Total 1 Types 1/0/0/0/0/0/0/0/0/0 Lore% 60 Gallery% 51 Achievement% 46 Wizard Run 0 Options --------- Layout 1 ASCII 0 Keyboard 0 Movement Numpad Keybinds 0 Fullscreen 1 Font 24/Smallcaps Map View 50x35 Zoom Use 0% Tactical HUD 1 Map Filters NONE Filters NONE Steam 1 RUN: b9545c91-776a-4650-99e7-e611f69abe62